[Event "German Bundesliga 2023-24"]
[Site "Germany"]
[Date "2024.02.23"]
[Round "9.12"]
[White "Hertneck, Gerald"]
[Black "Santos Ruiz, Miguel"]
[Result "0-1"]
[ECO "D35"]
[WhiteElo "2441"]
[BlackElo "2593"]
[Annotator "TA"]
[PlyCount "116"]
[EventDate "2023.10.20"]
[EventType "team-tourn"]
[EventCountry "GER"]
[SourceTitle "playchess.com"]
[Source "ChessBase"]
[SourceQuality "1"]
[TimeControl "40/6000+30:3000+30"]

{[%evp 30,116,-12,-12,-11,-7,0,0,0,0,15,0,0,-5,0,-16,-12,-21,0,-7,0,-22,-22,-22,-20,-26,-26,-26,-18,-18,-18,-18,0,-17,-17,-18,-18,-20,-14,-30,-14,-31,-16,-41,-42,-160,-153,-236,-223,-215,-216,-270,-268,-358,-335,-341,-314,-369,-372,-433,-403,-425,-420,-450,-456,-461,-465,-485,-494,-482,-482,-454,-448,-630,-640,-633,-657,-665,-652,-649,-649,-1218,-1356,-29981,-29982,-29982,-29983,-29989,-29990]} 1. d4 {[%emt 0:00:04]} Nf6 {[%emt 0:00:04]} 2. c4 {[%emt 0:00:14]} e6 {[%emt 0:00:04]} 3. Nf3 {[%emt 0:00:05]} d5 {[%emt 0:00:03]} 4. Nc3 {[%emt 0:00:10]} c6 {[%emt 0:00:04]} 5. cxd5 {[%emt 0:00:09]} exd5 {[%emt 0:00:04]} 6. Bg5 {[%emt 0:00:19]} h6 {[%emt 0:00:13]} 7. Bf4 {[%emt 0:00:53] D35: Queen's Gambit Declined: Exchange Variation.} Bf5 {[%emt 0:01:17]} 8. e3 {[%emt 0:00:10]} Nbd7 {[%emt 0:05:32]} 9. Bd3 {[%emt 0:02:47]} Bxd3 {[%emt 0:00:17]} 10. Qxd3 {[%emt 0:00:06]} Be7 {[%emt 0:00:07]} 11. h3 {[%emt 0:00:25]} a5 {[%emt 0:01:18]} 12. O-O {[%emt 0:00:21]} O-O {[%emt 0:00:15]} 13. Bh2 $146 {[%emt 0:03:14]} ({Predecessor:} 13. Ne5 Re8 14. Rae1 Bb4 15. Rc1 Nxe5 16. Bxe5 Nd7 17. Bg3 Qf6 18. a3 Bf8 19. Rce1 {1-0 Tiglon,B (2384)-Li,E (2403) San Jose Mission 360 GM/IM 3rd 2022 (7)}) 13... Re8 {[%emt 0:02:25]} 14. Rac1 {[%emt 0:07:04]} Bf8 {[%emt 0:04:01]} 15. Ne5 {[%emt 0:02:34]} Nxe5 {[%emt 0:09:39]} 16. Bxe5 {[%emt 0:02:40]} Re6 {[%emt 0:00:49]} 17. Na4 {[%emt 0:04:02]} Nd7 {[%emt 0:00:39]} 18. Bf4 {[%emt 0:02:13]} Qf6 {[%emt 0:13:58]} 19. Bc7 {[%emt 0:07:41]} h5 {[%emt 0:18:27]} 20. a3 {[%emt 0:00:52]} Qg5 {[%emt 0:11:16]} 21. Kh1 {[%emt 0:03:35]} h4 {[%emt 0:06:38]} 22. Qd2 {[%emt 0:01:16]} Nf6 {[%emt 0:01:48]} 23. Nc3 {[%emt 0:04:38]} Nh5 {[%emt 0:10:03]} 24. Ne2 {[%emt 0:02:31]} a4 {[%emt 0:09:11]} 25. Nf4 {[%emt 0:04:38]} Nxf4 {[%emt 0:00:03]} 26. Bxf4 {[%emt 0:00:06]} Qe7 {[%emt 0:00:03]} 27. Rc5 {[%emt 0:00:44]} Qd8 {[%emt 0:00:25]} (27... g5 $5 28. Bh2 $8 g4 $11) 28. Rc3 {[%emt 0:00:06]} g6 {[%emt 0:00:35]} 29. Ra1 {[%emt 0:01:18]} Ra6 {[%emt 0:01:38]} 30. Kg1 {[%emt 0:01:23]} Ra8 {[%emt 0:01:20]} 31. Rb1 {[%emt 0:01:57]} Qe7 {[%emt 0:02:46]} 32. Qc2 {[%emt 0:04:03]} Ra6 {[%emt 0:00:47]} 33. Qd1 {[%emt 0:04:51]} Bg7 {[%emt 0:00:26]} 34. Qg4 {[%emt 0:02:58]} Bf6 {[%emt 0:00:34]} 35. Rc5 {[%emt 0:12:48]} Kg7 {[%emt 0:01:02]} 36. Rbc1 {[%emt 0:00:28]} Re4 {[%emt 0:01:16]} 37. Qf3 {[%emt 0:03:19] [#]} (37. Rd1 $15) 37... g5 $1 $17 {[%emt 0:02:48]} 38. Qg4 {[%emt 0:07:20]} (38. Bb8 $17 {was called for.}) 38... Bxd4 $19 {[%emt 0:01:30]} 39. R5c2 {[%emt 0:00:03]} Bf6 {[%emt 0:00:44]} 40. f3 {[%emt 0:00:52]} Re6 {[%emt 0:01:19]} 41. Kh1 {[%emt 0:57:24]} Kf8 {[%emt 0:53:53]} 42. Bh2 {[%emt 0:00:08]} Rxe3 {[%emt 0:00:11]} 43. Bg1 {[%emt 0:05:22] [#]} Re1 $1 {[%emt 0:01:51]} 44. g3 {[%emt 0:03:20]} Rxc1 {[%emt 0:00:00]} 45. Rxc1 {[%emt 0:00:00]} Qe6 {[%emt 0:00:00]} (45... Bxb2 $2 46. Bc5 $18) 46. gxh4 {[%emt 0:00:00]} Qxg4 {[%emt 0:00:00]} ({Stronger than} 46... Bxb2 47. Qb4+ Kg8 48. Qxb2 Qxh3+ (48... gxh4 $2 {loses.} 49. Bh2 $18) 49. Qh2 Qxf3+ 50. Qg2 Qxg2+ (50... Qxa3 51. Qxg5+ Kh7 52. Bd4) 51. Kxg2 $11) (46... gxh4 47. Qf4 d4 (47... Bxb2 $2 48. Bc5+ Kg8 49. Rg1+ Bg7 50. Rg4 $18) (47... Qxh3+ 48. Bh2 $11) 48. Bh2) 47. hxg4 {[%emt 0:00:00]} gxh4 {[%emt 0:00:00]} ({Not} 47... Bxb2 48. Bc5+ Kg7 49. Rb1 $19) 48. Rb1 {[%emt 0:00:00]} Ra5 {[%emt 0:00:00]} 49. b4 {[%emt 0:00:00]} axb3 {[%emt 0:00:00]} 50. Rxb3 {[%emt 0:00:00]} b5 {[%emt 0:00:00]} 51. Bc5+ {[%emt 0:00:00]} (51. Kg2 $142) 51... Be7 $19 {[%emt 0:00:00]} 52. Bb4 {[%emt 0:00:00]} Bxb4 {[%emt 0:00:00]} 53. axb4 {[%emt 0:00:00]} Ra2 {[%emt 0:00:00]} 54. Rc3 {[%emt 0:00:00]} Ke7 {[%emt 0:00:00]} 55. Rxc6 {[%emt 0:00:00]} d4 {[%emt 0:00:00]} 56. f4 {[%emt 0:00:00]} d3 {[%emt 0:00:00]} 57. Rc1 {[%emt 0:00:00]} Re2 {[%emt 0:00:00]} 58. Rd1 {[%emt 0:00:00]} d2 {[%emt 0:00:00]} 0-1

[Event "German Bundesliga 2023-24"]
[Site "Germany"]
[Date "2024.02.23"]
[Round "9.13"]
[White "Dragnev, Valentin"]
[Black "Zysk, Robert"]
[Result "1-0"]
[ECO "C05"]
[WhiteElo "2586"]
[BlackElo "2388"]
[Annotator "TA"]
[PlyCount "95"]
[EventDate "2023.10.20"]
[EventType "team-tourn"]
[EventCountry "GER"]
[SourceTitle "playchess.com"]
[Source "ChessBase"]
[SourceQuality "1"]
[TimeControl "40/6000+30:3000+30"]

{[%evp 10,95,4,-10,18,18,12,21,16,0,4,3,10,9,27,25,15,19,42,57,80,44,79,59,51,66,59,60,58,67,54,59,61,64,129,34,61,49,66,55,86,83,83,79,84,83,83,84,81,85,85,0,93,72,73,70,81,79,118,125,244,246,258,253,235,244,253,259,215,220,269,253,233,202,308,227,238,239,214,222,213,168,172,123,504,497,514,493]} 1. e4 {[%emt 0:00:04][%cal Be2e4,Be4e5][%mdl 32]} e6 {[%emt 0:00:06]} 2. d4 {[%emt 0:00:11]} d5 {[%emt 0:00:03]} 3. Nd2 {[%emt 0:00:14]} c5 {[%emt 0:01:37]} 4. Ngf3 {[%emt 0:00:21][%cal Bg1f3,Bf3e1,Be1d3][%mdl 32]} Nf6 {[%emt 0:01:04]} 5. e5 {[%emt 0:00:07]} Nfd7 {[%emt 0:01:56]} 6. c3 {[%emt 0:00:20]} Be7 {[%emt 0:12:34]} 7. Bd3 {[%emt 0:02:19]} b6 {[%emt 0:03:24]} 8. O-O {[%emt 0:00:22]} Ba6 {[%emt 0:00:45] The position is equal.} 9. Ne1 {[%emt 0:00:10]} Bxd3 {[%emt 0:08:00]} 10. Nxd3 {[%emt 0:00:20]} Nc6 {[%emt 0:00:26]} 11. Qg4 {[%emt 0:01:23]} g6 {[%emt 0:02:35]} 12. Nf3 {[%emt 0:01:24]} h5 {[%emt 0:05:24]} 13. Qg3 {[%emt 0:04:02]} Qc7 {[%emt 0:04:17]} 14. Be3 {[%emt 0:08:44]} O-O-O {[%emt 0:06:03]} 15. dxc5 {[%emt 0:14:39]} Nxc5 {[%emt 0:03:07]} 16. Nxc5 {[%emt 0:02:15]} Bxc5 {[%emt 0:02:36]} 17. Bxc5 {[%emt 0:02:42]} bxc5 {[%emt 0:00:05] [#]} 18. b4 $1 {[%emt 0:00:17]} h4 {[%emt 0:19:36]} 19. Qf4 {[%emt 0:03:51]} (19. Nxh4 Nxe5 (19... cxb4 20. Rac1 $14) (19... Qxe5 20. bxc5 Rd7 21. Rab1 $11) 20. bxc5 Rh5) 19... Rh5 {[%emt 0:01:59]} 20. Rfe1 {[%emt 0:05:47]} (20. bxc5 Nxe5 21. Nxe5 (21. Nxh4 $2 g5 $19) 21... Rxe5 $11) 20... Rf5 {[%emt 0:14:16]} 21. Qe3 {[%emt 0:01:02]} ({But not} 21. Qxh4 Nxe5 22. Nxe5 Rxe5 $11) 21... c4 {[%emt 0:00:30]} (21... cxb4 $14 22. cxb4 (22. Nxh4 Rxe5 23. Qd2 Rxe1+ 24. Rxe1 Qa5 $17) 22... Qb6) 22. Rad1 {[%emt 0:23:53]} ({And not} 22. Nxh4 Rxe5 23. Qd2 Rxe1+ 24. Qxe1 g5 $17) (22. b5 $16 Rxf3 23. gxf3) 22... Rh5 {[%emt 0:11:02]} 23. b5 {[%emt 0:10:19]} Ne7 {[%emt 0:00:44]} 24. Rb1 {[%emt 0:00:09]} Qb6 {[%emt 0:03:25]} 25. Qf4 {[%emt 0:00:08][%csl LRf7,LRh4]} Nf5 {[%emt 0:00:31]} 26. Rb4 {[%emt 0:05:30]} Rd7 {[%emt 0:02:06]} 27. Reb1 {[%emt 0:01:17]} Rb7 {[%emt 0:02:36]} 28. a4 {[%emt 0:07:46]} Rh8 {[%emt 0:01:13]} 29. Ra1 {[%emt 0:01:55]} Qc5 {[%emt 0:00:20]} 30. Rab1 {[%emt 0:03:42]} Qb6 $1 {[%emt 0:00:14]} 31. g4 {[%emt 0:00:27]} hxg3 {[%emt 0:00:20]} 32. hxg3 {[%emt 0:00:02]} Qd8 {[%emt 0:00:17]} 33. Kg2 {[%emt 0:03:47]} Qf8 {[%emt 0:01:05]} 34. a5 $36 {[%emt 0:00:42][%cal Ba4a5,Ba5a6][%mdl 2080] White is really pushing.} Qh6 {[%emt 0:00:35]} (34... Kb8 $16 35. Qg5 Qg8) 35. Qxh6 $18 {[%emt 0:01:15]} Rxh6 {[%emt 0:00:08]} 36. a6 {[%emt 0:00:11]} Rb6 {[%emt 0:01:20]} 37. Ng5 {[%emt 0:00:25]} Kd7 {[%emt 0:00:43]} 38. Nxf7 {[%emt 0:02:31]} Rh7 {[%emt 0:00:45]} 39. Ng5 {[%emt 0:00:07]} Rh5 {[%emt 0:01:00]} 40. Nf3 {[%emt 0:01:54] [#] g4 is the strong threat.} Rh8 {[%emt 0:00:08]} 41. Rd1 {[%emt 0:06:50]} Ke7 {[%emt 0:07:16]} (41... g5 {was called for.} 42. Rxc4 (42. Nxg5 Rg8 $18) 42... Rxb5 43. Nxg5 Rb2) 42. Rbb1 {[%emt 0:01:20] Strongly threatening Rh1.} Kd7 {[%emt 0:06:19]} 43. Rg1 {[%emt 0:19:12]} Rbb8 {[%emt 0:27:06]} 44. Kf1 {[%emt 0:01:45]} Kc7 {[%emt 0:08:28]} 45. Ke2 {[%emt 0:00:49]} Kb6 {[%emt 0:00:23]} 46. g4 {[%emt 0:00:58]} (46. Rbd1 $18) 46... Nh4 $2 {[%emt 0:00:21][%mdl 8192]} (46... Nh6 $16 {is a better chance.} 47. Ng5 Rbf8 48. Nxe6 Re8) 47. Ng5 {[%emt 0:00:29]} Rbe8 {[%emt 0:01:08]} 48. Rg3 {[%emt 0:00:38] Weighted Error Value: White=0.13 (very precise) /Black=0.29 (precise) .  Loses game:     	---       	Black=1      Mistake:       	White=2     	Black=3      Inaccurate:     	White=1     	Black=4      OK:         	White=15    	Black=18     Best:        	White=4     	Black=2      Strong:       	---       	Black=1} 1-0

[Event "German Bundesliga 2023-24"]
[Site "Germany"]
[Date "2024.02.23"]
[Round "9.14"]
[White "Kruckenhauser, Arthur"]
[Black "Alonso Rosell, Alvar"]
[Result "1/2-1/2"]
[ECO "B11"]
[WhiteElo "2313"]
[BlackElo "2562"]
[Annotator "TA"]
[PlyCount "72"]
[EventDate "2023.10.20"]
[EventType "team-tourn"]
[EventCountry "GER"]
[SourceTitle "playchess.com"]
[Source "ChessBase"]
[SourceQuality "1"]
[TimeControl "40/6000+30:3000+30"]

{[%evp 10,72,13,6,30,14,22,-15,26,19,27,31,25,18,28,36,54,36,32,24,39,34,29,29,21,0,0,0,0,0,0,0,0,0,0,0,0,-20,8,0,0,0,0,0,0,0,0,0,34,27,87,14,18,0,75,0,0,0,0,0,0,0,0,0,15]} 1. e4 {[%emt 0:00:07]} c6 {[%emt 0:00:04]} 2. Nf3 {[%emt 0:00:21]} d5 {[%emt 0:00:05]} 3. Nc3 {[%emt 0:00:17]} Bg4 {[%emt 0:00:17]} 4. h3 {[%emt 0:00:09]} Bxf3 {[%emt 0:00:08]} 5. Qxf3 {[%emt 0:00:08]} e6 {[%emt 0:00:08]} 6. Be2 {[%emt 0:00:16]} Bc5 {[%emt 0:00:05]} 7. O-O {[%emt 0:06:25]} Ne7 {[%emt 0:01:09]} 8. exd5 {[%emt 0:04:57]} exd5 {[%emt 0:02:01]} 9. Rd1 {[%emt 0:01:25]} O-O {[%emt 0:01:28]} 10. d4 {[%emt 0:00:09]} Bd6 {[%emt 0:00:08]} 11. Bd3 {[%emt 0:02:03]} Nd7 {[%emt 0:01:27][%cal Bb8d7,Bd7f8,Bf8e6][%mdl 32]} 12. Ne2 {[%emt 0:03:39]} Bc7 {[%emt 0:08:24]} 13. h4 {[%emt 0:14:13]} Re8 {[%emt 0:06:38]} 14. g3 {[%emt 0:19:23]} Nf8 {[%emt 0:01:53]} 15. c3 {[%emt 0:09:30]} Nc8 {[%emt 0:04:50]} 16. Bg5 {[%emt 0:01:38]} Qd7 {[%emt 0:02:42]} 17. Bf5 {[%emt 0:11:26] This pair of bishops is nice.} Ne6 {[%emt 0:00:25]} 18. Bf4 {[%emt 0:05:04]} Nd6 {[%emt 0:01:25]} 19. Bxd6 {[%emt 0:01:11]} Qxd6 {[%emt 0:00:31]} 20. Re1 {[%emt 0:00:35]} Re7 {[%emt 0:04:52]} 21. Kf1 {[%emt 0:04:24]} Rae8 {[%emt 0:01:15]} 22. Ng1 {[%emt 0:05:18]} g6 {[%emt 0:01:55]} 23. Bxe6 {[%emt 0:02:33]} fxe6 {[%emt 0:01:22]} 24. Qg4 {[%emt 0:02:38]} e5 {[%emt 0:00:33]} 25. dxe5 {[%emt 0:00:29]} Rxe5 {[%emt 0:00:08]} 26. Nf3 {[%emt 0:00:47]} Re4 {[%emt 0:05:09]} 27. Rxe4 {[%emt 0:03:58]} dxe4 {[%emt 0:00:33]} 28. Ng5 {[%emt 0:01:23][%cal Oa1d1]} Bb6 {[%emt 0:25:23]} 29. Re1 {[%emt 0:03:02]} (29. Nxe4 Qd3+ 30. Qe2 Qxe2+ (30... Qxe4 $2 31. Qxe4 Rxe4 32. Rd1 $19) 31. Kxe2 Rxe4+ $19) 29... Qf6 {[%emt 0:05:58] [#]} (29... e3 $11 {keeps the balance.}) 30. Re2 {[%emt 0:00:36]} (30. Rxe4 $2 Qxf2#) (30. Nxe4 $2 {is the wrong capture.} Rxe4 31. Qc8+ Kf7 32. Qxb7+ Qe7 33. Qxe7+ Rxe7 $19) (30. f3 $1 $16 e3 31. Ke2) 30... e3 $11 {[%emt 0:01:24]} ({Much worse is} 30... Qf5 $6 31. Nxe4 (31. Rxe4 $2 Qxf2#) 31... Re6 32. Qxf5 gxf5 33. Ng5 Rxe2 34. Kxe2 $18) 31. Kg2 {[%emt 0:00:32]} h6 {[%emt 0:12:14] [#]} (31... Qf5 $11 32. Qxf5 gxf5) 32. Nh3 {[%emt 0:01:35]} ({Better is} 32. Ne4 $1 $16 {[%cal Re4f6]} Qe6 33. Qxe6+ Rxe6 34. f3) 32... Qf7 {[%emt 0:04:00] The position is equal.} 33. fxe3 {[%emt 0:00:51]} Rxe3 {[%emt 0:01:08]} 34. Rxe3 {[%emt 0:01:01]} Bxe3 {[%emt 0:00:02]} 35. Qe4 {[%emt 0:00:55]} Bc1 {[%emt 0:01:27]} 36. b3 {[%emt 0:00:30]} Bd2 {[%emt 0:07:02] Weighted Error Value: White=0.09 (flawless) /Black=0.15 (very precise) .  Mistake:       	White=2     	Black=2      Inaccurate:     	White=1     	Black=3      OK:         	White=11    	Black=13     Best:        	White=1     	---} 1/2-1/2

[Event "German Bundesliga 2023-24"]
[Site "Germany"]
[Date "2024.02.23"]
[Round "9.15"]
[White "Bischoff, Klaus"]
[Black "Zeller, Frank"]
[Result "1/2-1/2"]
[ECO "A07"]
[WhiteElo "2455"]
[BlackElo "2335"]
[Annotator "TA"]
[PlyCount "53"]
[EventDate "2023.10.20"]
[EventType "team-tourn"]
[EventCountry "GER"]
[SourceTitle "playchess.com"]
[Source "ChessBase"]
[SourceQuality "1"]
[TimeControl "40/6000+30:3000+30"]

{[%evp 9,53,-8,-13,-42,-26,-34,-37,-58,-70,-101,-89,-102,-93,-91,-105,-105,-77,-47,-47,-70,-9,-5,16,17,16,14,14,13,33,22,29,38,42,20,39,24,20,30,20,-7,0,0,0,0,0,0]} 1. g3 {[%emt 0:00:18]} d5 {[%emt 0:02:24]} 2. Bg2 {[%emt 0:00:24]} e5 {[%emt 0:01:02]} 3. Nf3 {[%emt 0:00:55]} Nc6 {[%emt 0:05:38]} 4. d3 {[%emt 0:03:46]} Be6 {[%emt 0:01:52]} 5. O-O {[%emt 0:06:20]} f6 {[%emt 0:02:44]} 6. Nc3 {[%emt 0:02:49]} Qd7 {[%emt 0:04:06]} 7. e4 {[%emt 0:02:11] [#] aiming for exd5.} d4 {[%emt 0:00:47]} 8. Ne2 {[%emt 0:01:30] Black is slightly better.} O-O-O {[%emt 0:05:07]} 9. Ne1 {[%emt 0:05:34]} h5 {[%emt 0:02:36]} 10. f4 {[%emt 0:00:48]} h4 {[%emt 0:02:47]} 11. f5 {[%emt 0:01:38]} Bf7 {[%emt 0:00:12]} 12. g4 {[%emt 0:00:07]} g6 {[%emt 0:03:17]} 13. fxg6 {[%emt 0:00:44]} Bxg6 {[%emt 0:06:44]} 14. h3 {[%emt 0:01:01]} Qh7 {[%emt 0:03:38]} ({Black should play} 14... Bf7 $15) 15. Bd2 {[%emt 0:05:12]} Bh6 {[%emt 0:00:39]} 16. b4 {[%emt 0:04:27][%cal Bb2b4,Bb4b5][%mdl 32]} Bxd2 {[%emt 0:02:39]} 17. Qxd2 {[%emt 0:00:20]} Qh6 {[%emt 0:00:49]} 18. Qxh6 {[%emt 0:00:46]} Rxh6 {[%emt 0:00:06]} 19. b5 {[%emt 0:03:59]} Nce7 {[%emt 0:02:55]} 20. c3 {[%emt 0:01:51]} dxc3 {[%emt 0:13:15]} 21. Nxc3 {[%emt 0:00:47]} Be8 {[%emt 0:01:12]} 22. a4 {[%emt 0:02:47]} c6 {[%emt 0:02:45]} 23. bxc6 {[%emt 0:25:38]} Bxc6 {[%emt 0:01:50]} 24. Kf2 {[%emt 0:00:53] The position is equal.} Ng6 {[%emt 0:02:10]} 25. Ke3 {[%emt 0:00:28]} Rh7 {[%emt 0:01:26]} 26. Rf2 {[%emt 0:02:04]} Rhd7 {[%emt 0:01:30]} 27. Bf1 {[%emt 0:02:36] Weighted Error Value: White=0.07 (flawless) /Black=0.09 (flawless) .  Mistake:       	---       	Black=1      Inaccurate:     	White=2     	---        OK:         	White=11    	Black=7      Best:        	White=1     	Black=1} 1/2-1/2

[Event "German Bundesliga 2023-24"]
[Site "Germany"]
[Date "2024.02.23"]
[Round "9.16"]
[White "Gerigk, Erasmus"]
[Black "Lokander, Martin"]
[Result "0-1"]
[ECO "C58"]
[WhiteElo "2310"]
[BlackElo "2462"]
[Annotator "TA"]
[PlyCount "86"]
[EventDate "2023.10.20"]
[EventType "team-tourn"]
[EventCountry "GER"]
[SourceTitle "playchess.com"]
[Source "ChessBase"]
[SourceQuality "1"]
[TimeControl "40/6000+30:3000+30"]

{[%evp 13,85,25,53,35,37,21,29,17,22,22,27,25,49,43,45,-10,-12,-22,27,28,40,-18,0,-14,69,61,63,54,60,62,84,62,53,33,42,51,58,23,33,22,82,20,61,37,72,0,0,0,0,0,175,20,22,0,0,0,0,-29975,-29976,-29993,-793,-29988,-29989,-29995,-29996,-29996,-29997,-29998,0,-1543,0,-29998,-29999,-29999]} 1. e4 {[%emt 0:00:04][%cal Be2e4,Be4d5][%mdl 32]} e5 {[%emt 0:00:09]} 2. Nf3 {[%emt 0:00:09]} Nc6 {[%emt 0:00:04]} 3. Bc4 {[%emt 0:00:11]} Nf6 {[%emt 0:00:04]} 4. Ng5 {[%emt 0:00:15]} d5 {[%emt 0:00:10]} 5. exd5 {[%emt 0:00:10]} Na5 {[%emt 0:00:03]} 6. Bb5+ {[%emt 0:00:18]} Bd7 {[%emt 0:00:21]} 7. Qe2 {[%emt 0:00:39]} Bd6 {[%emt 0:00:28]} 8. Nc3 {[%emt 0:01:58][%cal Bb1c3,Bc3e4,Be4g3][%mdl 32]} c6 {[%emt 0:01:36]} 9. dxc6 {[%emt 0:01:22]} Nxc6 {[%emt 0:00:06]} 10. Nge4 {[%emt 0:06:27] White has an edge.} Nxe4 {[%emt 0:09:44]} 11. Nxe4 {[%emt 0:00:34]} Be7 {[%emt 0:00:03]} 12. c3 {[%emt 0:02:05] Wards off Nd4} f5 {[%emt 0:02:50]} 13. Ng3 {[%emt 0:01:34]} O-O {[%emt 0:01:29]} 14. d3 {[%emt 0:02:03]} (14. O-O $14) 14... Kh8 $11 {[%emt 0:02:06][%cal Oc6d4]} 15. Bc4 {[%emt 0:03:42]} Qc7 {[%emt 0:06:04]} (15... Na5 $142) 16. O-O {[%emt 0:02:33]} Rad8 {[%emt 0:08:09]} 17. b4 {[%emt 0:03:12] [#] Prevents Na5.} (17. Bb3 $14) 17... e4 $1 {[%emt 0:16:10][%cal Ob7b5]} 18. d4 {[%emt 0:16:06] [#]} (18. dxe4 f4) 18... Bxb4 {[%emt 0:02:02]} 19. cxb4 $14 {[%emt 0:02:43] Bb2 would now be deadly.} Nxd4 {[%emt 0:00:06]} 20. Qb2 {[%emt 0:01:48][%cal Oc1e3] Black must now prevent Be3!} Qxc4 {[%emt 0:01:10]} 21. Bg5 {[%emt 0:00:57]} Qd5 {[%emt 0:20:06][%cal Of5f4]} 22. Bxd8 {[%emt 0:16:00]} Rxd8 {[%emt 0:00:46]} 23. Rac1 {[%emt 0:01:18] Rfd1 is the strong threat.} Bb5 {[%emt 0:02:28][%cal Of5f4] Strongly threatening ...f4!} 24. Rfd1 $1 {[%emt 0:08:43][%cal Od1d4]} Bd3 {[%emt 0:03:09]} 25. Qd2 {[%emt 0:02:41][%cal Og3e2]} h6 {[%emt 0:04:16]} 26. Kh1 {[%emt 0:02:22]} Qd6 {[%emt 0:05:26]} (26... Ne6 $1 $11) 27. Re1 {[%emt 0:01:56]} (27. f3 $16) 27... Qg6 {[%emt 0:10:37]} 28. Qf4 {[%emt 0:10:03]} Kh7 {[%emt 0:02:26]} 29. h4 {[%emt 0:01:22]} (29. Qe5 $16) 29... Rf8 $11 {[%emt 0:00:43]} 30. a3 {[%emt 0:07:36]} Ne6 {[%emt 0:01:33]} 31. Qe5 {[%emt 0:01:51]} Rf6 $2 {[%emt 0:03:42]} (31... f4 $1 $11 {and Black has nothing to worry.} 32. Nxe4 f3 33. gxf3 (33. g3 Kh8 $15) 33... Rf4 (33... Rxf3 $2 34. Qxe6 Qxe6 35. Ng5+ hxg5 36. Rxe6 $18)) 32. Rc8 $2 {[%emt 0:03:10]} ({White should play} 32. Kg1 $18) 32... Qg4 {[%emt 0:02:40]} 33. h5 {[%emt 0:03:37] And now Qb8 would win.} f4 $1 {[%emt 0:01:24]} 34. Nxe4 {[%emt 0:01:52]} Rf5 $40 {[%emt 0:01:20][%mdl 128] Black attacks. Chess con chili.} 35. Qc3 {[%emt 0:03:53][%mdl 8192] [#]} ({Reject} 35. Qxe6 Rxh5+ (35... Qxh5+ $2 {loses.} 36. Kg1 $18) 36. Kg1 Qxe6 $15) (35. Qb8 $11 Rxh5+ 36. Kg1 Bxe4 37. Rh8+ Kg6 38. Qe8+ Kf6 39. Rf8+ Nxf8 40. Qxf8+ Kg6 41. Qe8+ Kh7 42. Qxe4+ Rf5 43. Rc1) 35... f3 $1 {[%emt 0:02:10][%csl Gf3][%cal Rg4g2]} 36. Ng3 {[%emt 0:00:43]} (36. Nf6+ Rxf6) 36... fxg2+ {[%emt 0:00:22]} (36... Qh4+ $142 37. Kg1 Qxg3 38. Rh8+ Kxh8 39. Qc8+ Kh7 40. Qh8+ Kxh8 41. fxg3 f2+ 42. Kh2 Rxh5#) 37. Kh2 {[%emt 0:00:37]} Nf4 {[%emt 0:01:41]} 38. Rc5 {[%emt 0:01:02]} Qh4+ {[%emt 0:00:26]} 39. Kg1 {[%emt 0:00:06]} Nh3+ {[%emt 0:00:09]} 40. Kh2 {[%emt 0:00:26]} Nf4+ {[%emt 0:00:18]} (40... g1=Q+ $142 41. Rxg1 Nf4#) 41. Kg1 $19 {[%emt 0:50:06]} Nh3+ {[%emt 0:50:18]} (41... Be4 $19 42. Qxg7+ Kxg7 43. Rc7+ Rf7 44. Rxf7+ Kxf7 45. Rxe4 Qg4 46. Rxf4+ Qxf4 47. Kxg2 Kg8) 42. Kh2 $1 {[%emt 0:00:06]} g1=Q+ {[%emt 0:00:22]} 43. Rxg1 {[%emt 0:00:10]} Nf4# {[%emt 0:00:05] Weighted Error Value: White=0.51/Black=0.50.  Loses game:     	White=1     	Black=1      Mistake:       	White=5     	Black=3      Inaccurate:     	White=1     	Black=1      OK:         	White=6     	Black=11     Best:        	---       	Black=3      Strong:       	White=2     	Black=2} 0-1